bitfinex-derivatives/quotes_ETHF0:USTF0_20251003
["timestamp","ask_amount","ask_price","bid_price","bid_amount"]
[1759511258527,2.88145624,4490.3,4489.4,2.3369]
[1759511258927,0.00231798,4490.3,4489.4,2.3369]
[1759511259125,0.00231798,4490.3,4489.4,2.0959]
[1759511259326,2.95889734,4490.2,4489.4,2.49655]
[1759511259630,0.00231798,4490.3,4489.5,0.241]
[1759511259825,0.00231798,4490.3,4489.4,2.0959]
[1759511260031,2.1618,4490.1,4489.5,0.241]
[1759511260334,2.88963062,4490.0,4489.5,0.241]
[1759511260530,5.05143062,4490.0,4489.5,0.241]
[1759511260824,0.00231798,4490.3,4489.6,0.40064]
[1759511260825,2.92676414,4490.1,4489.6,0.40064]
[1759511261020,2.92676414,4490.1,4489.8,3.60842]
[1759511261222,0.00231798,4490.3,4489.8,3.60842]
[1759511261424,0.00231798,4490.3,4489.9,2.0959]
[1759511261630,0.00231798,4490.3,4490.0,0.241]
[1759511261925,0.00231798,4490.3,4490.0,0.6416]
[1759511262127,0.00231798,4490.3,4490.2,2.49649]
[1759511263127,3.2078,4491.7,4491.0,2.49641]
[1759511263326,2.1618,4492.0,4491.2,0.40049]
[1759511263522,2.1618,4492.0,4491.1,0.241]
[1759511263523,2.56223,4492.0,4491.1,0.241]
[1759511263827,2.56229,4491.3,4490.4,2.0959]
[1759511264130,2.88404008,4491.2,4490.4,2.09843709]
[1759511264326,0.40052,4491.0,4490.4,0.00253709]
[1759511264535,3.2078,4491.1,4490.4,0.00253709]
[1759511264733,3.2078,4491.1,4490.5,0.241]
[1759511264927,2.93064285,4491.0,4490.4,0.00253709]
[1759511265133,2.93064285,4491.0,4490.5,0.241]
[1759511265320,2.93064285,4491.0,4490.6,2.0959]
[1759511265527,2.93064285,4491.0,4490.9,2.0959]
[1759511265728,0.00278107,4491.3,4491.0,0.40052]
[1759511265923,0.00278107,4491.3,4491.2,2.4964]
[1759511266127,3.2078,4492.1,4491.9,0.40043]
[1759511266325,2.1618,4492.5,4491.6,3.2078]
[1759511266632,3.2078,4491.9,4491.7,0.241]
[1759511266838,3.60824,4491.9,4490.9,2.0959]
[1759511267132,2.83262484,4491.8,4491.0,0.40051]
[1759511267328,2.83262484,4491.8,4491.3,0.40048]
[1759511267529,2.83262484,4491.8,4491.2,0.40049]
[1759511267730,2.83262484,4491.8,4491.2,2.49639]
[1759511267929,2.83262484,4491.8,4491.3,0.241]
[1759511268236,2.83262484,4491.8,4490.6,1.00138]
[1759511268237,0.00254786,4491.9,4491.6,0.40046]
[1759511268427,2.16434786,4491.9,4491.2,3.2078]
[1759511268732,4.99298919,4491.8,4491.2,3.2078]
[1759511268926,2.1618,4491.7,4491.3,0.24]
[1759511269131,2.1618,4491.7,4491.2,3.2078]
[1759511269329,2.83118919,4491.6,4490.9,2.0959]
[1759511269631,2.1618,4491.4,4491.0,0.24]
[1759511269831,3.2078,4491.5,4491.0,0.24]
[1759511269832,2.1618,4491.3,4491.0,0.24]
[1759511270032,2.1618,4491.2,4491.0,0.24]
[1759511270228,0.40054,4490.8,4490.6,0.24]
[1759511270426,0.40054,4490.8,4490.4,0.00253709]
[1759511270427,2.56235,4490.6,4490.4,0.00253709]
[1759511270738,5.04938426,4490.5,4490.4,0.00253709]
[1759511271030,10.04938426,4490.5,4489.2,3.2078]
[1759511271233,3.2078,4489.7,4489.1,5.5437]
[1759511271632,3.2078,4489.7,4489.1,3.2078]
[1759511271836,3.2078,4489.7,4489.2,0.24]
[1759511272032,3.2078,4489.7,4489.3,0.24]
[1759511272237,5.3696,4489.7,4489.3,0.24]
[1759511272652,0.24,4490.4,4489.3,0.24]
[1759511272653,2.1618,4490.3,4489.3,0.24]
[1759511272935,0.40059,4490.2,4489.3,0.24]
[1759511273136,0.40059,4490.2,4489.2,0.00196752]
[1759511273137,3.2078,4489.9,4489.2,0.00196752]
[1759511273336,2.1618,4489.3,4489.2,0.00196752]
[1759511273633,5.09594803,4489.3,4489.2,0.00196752]
[1759511274139,1.00148,4490.2,4489.2,0.00196752]
[1759511274140,3.2078,4489.9,4489.3,2.0959]
[1759511274335,3.2078,4489.9,4489.2,0.00196752]
[1759511274336,3.60842,4489.9,4489.4,2.0959]
[1759511274541,2.93414803,4490.1,4489.5,0.40065]
[1759511274740,2.1618,4489.7,4489.3,2.0959]
[1759511274937,2.93245259,4489.8,4489.2,0.00196752]
[1759511275240,3.2078,4490.1,4489.2,0.00196752]
[1759511275437,2.93245259,4490.5,4489.8,0.8608]
[1759511275637,3.2078,4490.6,4490.4,2.49647]
[1759511275937,3.2078,4491.7,4490.7,2.0959]
[1759511276238,2.85193045,4491.5,4490.8,0.24]
[1759511276742,3.2078,4491.7,4490.9,3.2078]
[1759511276937,3.2078,4491.7,4491.0,0.24]
[1759511277138,2.1618,4491.5,4491.1,0.24]
[1759511277341,2.1618,4491.4,4491.1,0.24]
[1759511277534,2.85400741,4491.4,4491.1,0.24]
[1759511277839,2.1618,4491.4,4491.1,0.24]
[1759511278042,2.90074184,4491.6,4491.0,0.24]
[1759511278043,5.46301184,4491.6,4491.0,0.24]
[1759511278237,2.90074184,4491.3,4491.1,2.0959]
[1759511278438,3.2078,4491.7,4491.2,2.0959]
[1759511278651,2.90074184,4491.6,4491.2,2.0959]
[1759511278941,3.2078,4491.7,4490.6,2.0959]
[1759511279240,2.90975343,4491.6,4491.1,0.4005]
[1759511279444,2.90975343,4491.6,4491.2,2.0959]
[1759511279642,2.90975343,4491.6,4490.4,4.0686]
[1759511279643,2.1618,4491.5,4490.4,4.0686]
[1759511279843,2.1618,4491.5,4490.2,2.0959]
[1759511279844,0.40054,4490.8,4490.2,2.0959]
[1759511280144,2.88211099,4491.4,4490.5,0.24]
[1759511280340,3.2078,4491.1,4491.0,2.49641]
[1759511280536,3.2078,4491.8,4491.0,2.3359]
[1759511280739,3.2078,4491.8,4490.5,3.2078]
[1759511280740,2.1618,4491.4,4490.5,3.2078]
[1759511280939,2.1618,4491.0,4490.3,0.24]
[1759511281141,3.2078,4491.1,4490.3,2.3359]
[1759511281449,3.2078,4491.1,4490.6,3.09729]
[1759511281652,3.2078,4491.1,4491.0,2.0959]
[1759511281943,2.8937553,4491.0,4490.3,2.0959]
[1759511282147,6.1015553,4491.1,4490.4,0.64056]
[1759511282338,3.2078,4491.1,4490.4,0.24]
[1759511282537,2.8937553,4491.0,4490.4,0.24]
[1759511282839,2.8937553,4491.0,4490.3,2.0959]
[1759511282840,2.2535,4490.3,4489.7,0.24]
[1759511283036,3.2078,4490.5,4489.7,0.24]
[1759511283242,3.2078,4490.5,4489.8,3.029]
[1759511283443,2.2535,4490.3,4489.8,0.24]
[1759511283840,2.89719779,4490.2,4489.4,3.2078]
[1759511284040,2.89719779,4490.2,4489.5,0.24]
[1759511284444,0.40063,4489.7,4489.2,3.20976752]
[1759511284644,2.2535,4489.6,4489.2,0.24196752]
[1759511284847,2.2535,4489.3,4489.2,0.00196752]
[1759511285049,5.08891966,4490.0,4489.2,0.00196752]
[1759511285245,0.24,4489.9,4489.2,0.00196752]
[1759511285543,2.83541966,4489.7,4489.2,0.00196752]
[1759511285743,2.2535,4489.8,4489.3,0.24]
[1759511285952,2.2535,4490.0,4489.3,0.24]
[1759511286149,2.84750832,4489.7,4489.4,2.1996]
[1759511286349,2.84750832,4489.8,4489.3,0.24]
[1759511286646,3.2078,4489.5,4489.2,0.00196752]
[1759511286852,2.2535,4489.4,4489.2,0.00196752]
[1759511287245,3.27529852,4490.2,4489.2,0.00196752]
[1759511287246,2.4935,4490.7,4489.3,2.1996]
[1759511287443,2.2535,4490.7,4489.8,2.1996]
[1759511287645,2.87470852,4490.6,4490.0,3.6084]
[1759511287846,3.2078,4491.0,4490.0,3.2078]
[1759511288046,3.2078,4491.0,4490.2,2.1996]
[1759511288248,3.2078,4491.0,4490.7,2.1996]
[1759511288450,2.25604786,4491.9,4490.8,0.24]
[1759511288750,0.00254786,4491.9,4491.8,5.4074]
[1759511289157,0.00254786,4491.9,4491.8,3.4478]
[1759511289356,0.00254786,4491.9,4491.8,5.6474]
[1759511289549,0.00254786,4491.9,4491.8,2.4396]
[1759511290152,0.00254786,4491.9,4491.8,2.84004]
[1759511290653,2.2535,4494.4,4492.8,2.1996]
[1759511290863,1.00061,4494.1,4492.6,3.2078]
[1759511291052,1.00095,4492.6,4491.1,4.52727532]
[1759511291353,3.2078,4491.3,4490.1,2.1996]
[1759511291557,3.2078,4490.6,4490.2,0.24]
[1759511291850,3.2078,4490.6,4490.5,3.029]
[1759511292053,2.94954851,4490.5,4490.1,0.00273727]
[1759511292354,6.55789851,4490.6,4490.1,0.00273727]
[1759511292556,0.40058,4490.3,4490.1,0.00273727]
[1759511292752,2.83777917,4490.5,4490.2,2.1996]
[1759511292953,2.83777917,4490.2,4490.1,2.20233727]
[1759511293151,3.2078,4490.6,4490.2,2.1996]
[1759511293352,2.83777917,4490.5,4490.2,0.24]
[1759511293552,3.2078,4490.6,4490.2,2.1996]
[1759511293753,2.8684406,4490.5,4490.2,2.1996]
[1759511294056,2.8684406,4490.5,4490.1,0.00273727]
[1759511294257,2.8684406,4490.5,4490.2,2.1996]
[1759511294454,2.8684406,4490.5,4490.1,0.40332727]
[1759511294758,2.8684406,4490.5,4490.1,0.00273727]
[1759511294948,3.2078,4490.6,4490.2,2.1996]
[1759511295148,3.2078,4490.6,4490.1,0.00273727]
[1759511295351,3.2078,4490.6,4490.5,3.029]
[1759511295551,3.2078,4491.1,4490.5,3.029]
[1759511295760,3.2078,4490.6,4490.5,3.029]
[1759511296453,3.2078,4490.6,4490.5,3.269]
[1759511296654,3.2078,4490.6,4490.5,3.029]
[1759511296853,3.2078,4490.6,4490.5,3.269]
[1759511297262,3.2078,4491.1,4491.0,0.8294]
[1759511297455,3.2078,4491.1,4490.1,0.00273727]
[1759511297456,3.26237707,4490.6,4490.1,0.00273727]
[1759511297656,3.60839,4490.2,4490.1,0.00273727]
[1759511297960,6.46831575,4490.2,4490.1,0.00273727]
[1759511298148,6.06772575,4490.2,4490.1,0.00273727]
[1759511298347,3.2078,4490.7,4490.4,0.8294]
[1759511298558,3.2078,4490.7,4490.6,2.1996]
[1759511298754,3.2078,4490.7,4490.6,2.4396]
[1759511299758,0.40055,4490.6,4490.4,0.8294]
[1759511299960,0.40059,4490.2,4490.1,2.20233727]
[1759511300155,3.60839,4490.2,4490.1,2.20233727]
[1759511300355,6.04945274,4490.2,4490.1,2.20233727]
[1759511300556,3.2078,4490.2,4490.1,2.20233727]
[1759511300753,3.2078,4490.7,4490.4,0.8294]
[1759511301059,3.2078,4490.7,4490.6,2.1996]
[1759511301457,0.40057,4490.4,4490.3,0.24]
[1759511301656,0.40056,4490.6,4490.4,2.1996]
[1759511301866,3.2078,4490.7,4490.5,2.1996]
[1759511302259,2.83203875,4490.6,4490.5,2.1996]
[1759511302458,3.2078,4490.7,4490.5,2.1996]
[1759511302752,3.2078,4490.7,4490.6,2.4396]
[1759511303152,3.2078,4491.2,4491.0,0.8294]
[1759511303356,3.2078,4491.2,4491.1,2.4396]
[1759511304463,3.2078,4491.8,4491.7,2.1996]
[1759511304663,3.2078,4491.8,4491.7,2.4396]
[1759511304863,3.2078,4491.8,4491.7,2.60005]
[1759511305059,3.2078,4492.4,4492.2,0.8294]
[1759511305254,3.2078,4492.4,4492.3,0.24]
[1759511305459,2.93526213,4492.3,4491.6,0.8294]
[1759511305660,3.33849072,4492.4,4492.3,2.1996]
[1759511305861,0.00283859,4492.4,4492.3,2.1996]
[1759511306061,2.84107943,4492.4,4492.3,2.1996]
[1759511306263,2.84107943,4492.4,4492.3,0.24]
[1759511306462,0.40041,4492.2,4491.6,3.029]
[1759511306659,3.60824,4491.8,4491.7,2.1996]
[1759511306864,3.2078,4491.8,4491.7,2.4422]
[1759511307067,6.07091223,4491.8,4491.7,2.4422]
[1759511307268,3.2078,4491.8,4491.7,2.4422]
[1759511307563,3.21063859,4492.4,4492.2,0.8376]
[1759511307760,3.21063859,4492.4,4492.3,2.4422]
[1759511308161,0.00283859,4492.4,4492.3,7.4422]
[1759511308362,0.24,4493.4,4492.4,0.40039]
[1759511308665,0.40048,4491.4,4491.2,1.59295693]
[1759511308865,3.2078,4491.6,4491.0,3.0316]
[1759511309065,3.2078,4491.4,4491.0,0.8294]
[1759511309375,3.61025107,4491.4,4491.0,0.8294]
[1759511309565,3.61025107,4491.4,4491.1,2.2022]
[1759511309566,2.92596257,4491.3,4491.1,2.2022]
[1759511309763,3.20977107,4491.4,4491.1,2.2022]
[1759511309964,3.20977107,4491.4,4491.1,2.4422]
[1759511310163,2.92307793,4491.3,4491.2,2.2022]
[1759511310862,3.20977107,4491.4,4491.2,2.2022]
[1759511311064,3.20977107,4491.4,4491.1,0.24]
[1759511311371,3.20977107,4491.4,4491.3,2.2022]
[1759511312466,3.2078,4492.4,4491.6,0.8481]
[1759511312662,3.2078,4492.4,4491.7,2.1323]
[1759511312865,3.2078,4492.4,4491.8,0.24]
[1759511313070,3.2078,4492.4,4491.9,2.1323]
[1759511313265,3.2078,4492.4,4492.2,0.8481]
[1759511313468,2.86509773,4492.3,4492.2,0.8481]
[1759511313667,2.86509773,4492.3,4492.2,1.0881]
[1759511313863,3.20953897,4492.4,4492.2,3.2204]
[1759511314063,0.00173897,4492.4,4492.3,2.5327]
[1759511314369,0.00173897,4492.4,4492.3,2.1323]
[1759511314568,0.00173897,4492.4,4492.3,2.3723]
[1759511315268,3.2078,4492.9,4492.8,2.9804]
[1759511315465,3.2078,4492.9,4492.8,3.2204]
[1759511315660,3.2078,4492.9,4492.8,2.9804]
[1759511315867,6.059359,4492.9,4492.3,2.1323]
[1759511316168,6.0617945,4492.9,4492.8,2.9804]
[1759511316370,3.2102355,4492.9,4492.8,3.2204]
[1759511316771,3.2102355,4492.9,4492.8,2.9804]
[1759511317068,0.0024355,4492.9,4492.8,3.2194]
[1759511317471,3.2078,4493.4,4493.1,2.1323]
[1759511317665,3.2078,4493.4,4493.3,2.1323]
[1759511318070,6.15895037,4493.4,4493.3,2.1323]
[1759511318469,6.16070507,4493.4,4493.3,2.13436225]
[1759511318972,0.0017547,4493.4,4493.3,2.37336225]
[1759511319272,3.2078,4494.2,4493.7,1.00069]
[1759511319470,3.2078,4494.7,4494.5,0.8481]
[1759511319673,3.2078,4494.7,4494.0,0.8481]
[1759511319874,2.90068785,4494.1,4494.0,2.9804]
[1759511320173,2.90068785,4494.1,4494.0,3.2194]
[1759511320174,0.00194392,4494.1,4494.0,3.2194]
[1759511320378,2.86643451,4494.1,4494.0,3.61965]
[1759511320571,2.86643451,4494.1,4494.0,3.2194]
[1759511320974,2.86643451,4494.1,4494.0,3.61965]
[1759511321474,2.86643451,4494.1,4494.0,3.2194]
[1759511321976,0.00194392,4494.1,4494.0,3.2194]
[1759511322167,0.00194392,4494.1,4494.0,8.2194]
[1759511322478,0.00194392,4494.1,4494.0,3.2194]
[1759511322980,0.00194392,4494.1,4494.0,8.2194]
[1759511323172,3.2078,4495.5,4494.6,2.1323]
[1759511323371,3.2078,4495.5,4495.1,2.1323]
[1759511323574,1.0,4496.9,4495.2,2.3713]
[1759511323575,2.85110599,4495.3,4495.2,2.3713]
[1759511323877,3.85116599,4496.6,4494.5,4.0559]
[1759511323878,0.40016,4495.1,4494.7,0.239]
[1759511324074,3.2078,4494.9,4494.8,2.1323]
[1759511324271,3.2078,4494.9,4494.8,2.3713]
[1759511324673,0.00204062,4495.1,4495.0,0.8481]
[1759511324972,2.93531366,4495.1,4495.0,3.2194]
[1759511325381,3.33546366,4495.1,4495.0,0.239]
[1759511325567,11.14311366,4495.1,4494.4,2.1323]
[1759511325772,11.14311366,4495.1,4494.0,0.8481]
[1759511325773,3.2078,4494.6,4494.0,0.8481]
[1759511326071,3.07789192,4494.5,4494.0,0.8481]
[1759511326276,3.07789192,4494.5,4493.6,2.1323]
[1759511326472,3.2078,4494.0,4493.4,0.239]
[1759511326668,3.2078,4494.0,4493.7,2.1323]
[1759511326870,2.89651387,4493.9,4493.7,2.1323]
[1759511327277,0.40028,4493.7,4493.3,0.00206225]
[1759511327483,2.89651387,4493.9,4493.7,0.40027]
[1759511327673,3.2078,4494.7,4494.5,1.2483]
[1759511327974,3.2078,4494.7,4494.6,2.1323]
[1759511328174,2.95064105,4495.0,4494.8,0.40017]
[1759511328378,2.95064105,4495.0,4494.5,0.8481]
[1759511328379,3.2078,4495.8,4495.0,0.8481]
[1759511328575,3.60789,4495.8,4495.5,0.8481]
[1759511328775,2.89817371,4495.7,4495.6,2.1323]
[1759511329069,0.40009,4495.8,4495.5,0.8481]
[1759511329381,3.29827371,4495.7,4495.5,2.9804]
[1759511329575,3.29827371,4495.7,4495.5,0.8481]
[1759511329775,0.40012,4495.4,4495.0,1.0871]
[1759511330081,0.40012,4495.4,4495.1,2.1323]
[1759511330082,3.2743168,4495.3,4495.1,2.1323]
[1759511330374,2.8741768,4495.3,4495.0,0.8481]
[1759511330573,2.8741768,4495.3,4495.2,0.40014]
[1759511330878,2.8741768,4495.3,4495.2,2.53244]
[1759511331480,2.8741768,4495.3,4495.2,2.1323]
[1759511331977,2.8741768,4495.3,4495.2,2.3713]
[1759511332172,2.93677286,4495.7,4495.5,0.8481]
[1759511332373,0.0024148,4495.8,4495.6,0.4001]
[1759511332577,0.0024148,4495.8,4495.5,4.0559]
[1759511332772,2.93677286,4495.7,4495.6,2.1323]
[1759511333779,0.0024148,4495.8,4495.7,2.1323]
[1759511334080,2.83058792,4495.8,4495.7,2.1323]
[1759511335385,3.2078,4496.8,4496.7,2.1323]
[1759511335682,6.16392714,4496.8,4496.7,2.1323]
[1759511335874,2.95612714,4496.8,4496.7,2.1323]
[1759511336081,3.2078,4497.3,4497.0,0.8481]
[1759511336378,3.2078,4497.3,4496.5,0.8481]
[1759511336379,2.91361995,4496.8,4496.6,2.1323]
[1759511336573,0.63898,4497.1,4497.0,0.8481]
[1759511336778,0.239,4497.1,4497.0,2.9804]
[1759511336979,2.88111331,4497.1,4497.0,2.9804]
[1759511337379,2.88111331,4497.2,4497.1,2.1323]
[1759511337578,0.00222619,4497.3,4497.0,1.0871]
[1759511337785,0.00222619,4497.3,4497.1,2.53227]
[1759511337979,0.00222619,4497.3,4497.1,2.1323]
[1759511338186,0.00222619,4497.3,4497.2,2.1323]
[1759511338584,2.8962389,4497.3,4497.2,2.1323]
[1759511339393,0.39996,4497.2,4497.0,0.8481]
[1759511339887,2.95524392,4497.1,4497.0,0.8481]
[1759511340188,2.95524392,4497.1,4497.0,1.0871]
[1759511340382,3.21002619,4497.3,4497.0,1.0871]
[1759511340383,0.00222619,4497.3,4497.0,0.8481]
[1759511340586,6.10908407,4497.2,4496.6,0.0025267]
[1759511340882,0.40001,4496.7,4496.6,0.0025267]
[1759511341291,2.8736974,4496.7,4496.6,2.1348267]
[1759511341490,2.8736974,4496.7,4495.5,0.8481]
[1759511341491,0.40008,4495.9,4495.5,0.8481]
[1759511341780,0.40015,4495.1,4495.0,2.9804]
[1759511341979,0.40011,4495.6,4495.5,0.8258]
[1759511342182,3.2078,4495.7,4495.6,2.0985]
[1759511342381,0.40006,4496.1,4496.0,0.8258]
[1759511342580,3.2078,4496.3,4496.1,2.0985]
[1759511342581,3.60784,4496.3,4496.1,2.0985]
[1759511342888,2.89561814,4496.5,4496.1,2.0985]
[1759511343084,0.40002,4496.6,4496.5,0.8258]
[1759511343288,2.83538868,4496.8,4496.6,2.0985]
[1759511343478,0.00222619,4497.3,4497.0,0.8258]
[1759511343789,3.23534868,4497.2,4497.1,2.3375]
[1759511343981,3.23534868,4497.2,4497.1,2.0985]
[1759511344284,0.40002,4496.6,4496.5,0.8258]
[1759511344487,3.2078,4496.6,4496.0,0.00213124]
[1759511344684,0.47592751,4496.5,4496.4,0.8258]
[1759511345086,3.77284387,4496.5,4496.4,0.8258]
[1759511345288,3.37281387,4496.5,4496.4,0.8258]
[1759511346084,3.37281387,4496.5,4496.0,2.10063124]
[1759511346292,2.89688636,4496.5,4496.4,6.1321]
[1759511346478,2.89688636,4496.5,4496.4,2.9243]
[1759511346678,0.40006,4496.2,4496.0,0.00213124]
[1759511346982,0.40006,4496.2,4496.1,2.0985]
[1759511347183,0.39996,4497.2,4496.5,0.8258]
[1759511347392,0.39997,4497.2,4497.0,0.8258]
[1759511347593,3.34894364,4497.2,4497.1,2.0985]
[1759511347886,2.94897364,4497.2,4497.1,2.0985]
[1759511348290,3.21002619,4497.3,4497.2,2.0985]
[1759511348291,0.00222619,4497.3,4497.2,2.0985]
[1759511348784,2.83530495,4497.3,4497.2,2.0985]
[1759511348990,2.78530495,4497.3,4497.2,2.3375]
[1759511349289,2.78530495,4497.3,4497.2,2.0985]
[1759511349488,0.39997,4497.1,4497.0,0.8258]
[1759511349691,0.40002,4496.6,4496.5,2.9243]
[1759511349984,3.32849199,4496.6,4496.5,2.9243]
[1759511350187,3.2078,4497.8,4497.0,0.8258]
[1759511350387,0.39992,4497.7,4497.6,2.0985]
[1759511350594,2.92578735,4497.7,4497.6,2.3375]
[1759511350888,0.022,4497.9,4497.6,0.63893]
[1759511351082,0.022,4497.9,4497.7,2.0985]
[1759511351287,0.02376195,4497.9,4497.7,2.0985]
[1759511351588,0.02376195,4497.9,4497.8,7.0985]
[1759511351990,3.2078,4498.8,4498.0,0.8258]
[1759511352191,0.39989,4498.1,4498.0,2.9243]
[1759511352390,0.99962,4498.6,4497.5,0.8258]
[1759511352391,0.39993,4497.6,4497.5,2.9243]
[1759511352587,2.87714905,4498.1,4497.6,2.0985]
[1759511352790,2.0691,4497.5,4495.8,3.2078]
[1759511352992,2.0691,4496.1,4496.0,3.20993124]
[1759511353289,2.86838648,4496.1,4496.0,0.00213124]
[1759511353694,2.86838648,4496.1,4496.0,5.24113124]
[1759511353993,4.4467,4497.3,4496.0,0.24113124]
[1759511354295,0.40006,4496.2,4496.0,0.24113124]
[1759511354493,3.2078,4496.7,4496.0,0.24113124]
[1759511354797,4.94558422,4496.1,4496.0,0.00213124]
[1759511354989,5.67696,4496.2,4496.0,0.00213124]
[1759511355191,4.91494616,4496.1,4496.0,0.00213124]
[1759511355385,2.0691,4495.9,4494.4,2.0985]
[1759511355586,3.2078,4495.4,4494.8,3.2078]
[1759511355787,0.40014,4495.2,4494.9,2.3375]
[1759511355995,1.00012,4496.3,4494.9,2.3375]
[1759511355996,2.8982883,4495.3,4494.9,0.63916]
[1759511356294,3.2078,4496.8,4494.8,3.2078]
[1759511356295,2.8982883,4495.7,4495.1,2.0985]
[1759511356495,2.8982883,4495.7,4495.2,2.3375]
[1759511356793,2.0691,4495.6,4495.3,0.239]
[1759511356996,2.0691,4495.5,4495.1,0.00275838]
[1759511357288,2.0691,4495.5,4495.2,0.239]
[1759511357491,2.91509568,4495.4,4495.1,0.00275838]
[1759511357687,2.91509568,4495.4,4493.4,0.8258]
[1759511357688,0.4002,4494.6,4493.7,5.70658]
[1759511357892,3.2078,4495.3,4494.6,0.40019]
[1759511358088,2.91683974,4495.6,4495.4,0.40012]
[1759511358294,0.40003,4496.5,4495.5,5.3063]
[1759511358494,2.91683974,4495.7,4495.6,2.3375]
[1759511358689,2.91683974,4495.9,4495.6,0.64070981]
[1759511358891,2.0691,4496.5,4495.6,0.24060981]
[1759511359192,2.83717301,4496.4,4496.1,2.0985]
[1759511359399,2.0691,4497.2,4496.7,0.4]
[1759511359599,3.2078,4497.4,4496.8,2.3375]
[1759511359795,2.83717301,4497.4,4497.3,2.0985]
[1759511359995,3.2078,4498.2,4497.4,2.49845]
[1759511360199,0.239,4498.9,4498.0,0.39989]
[1759511360397,3.2078,4499.0,4498.1,0.63888]
[1759511360595,2.92237901,4498.1,4498.0,2.49839]
[1759511360894,2.0691,4498.8,4498.0,3.2078]
[1759511361101,2.85464637,4498.1,4498.0,3.2078]
[1759511361399,2.071763,4498.1,4498.0,3.2078]
[1759511361704,4.92640937,4498.1,4498.0,3.2078]
[1759511362098,2.85730937,4498.1,4498.0,3.2078]
[1759511362303,2.85730937,4498.1,4498.0,5.3063]
[1759511362807,0.002663,4498.1,4498.0,5.3063]
[1759511363201,3.2078,4499.5,4498.9,2.0985]
[1759511363405,3.60751,4500.1,4498.9,2.0985]
[1759511363602,3.60751,4500.1,4498.8,0.8258]
[1759511363603,2.94058195,4499.2,4499.1,2.4983]
[1759511363802,2.94058195,4500.0,4499.1,3.2078]
[1759511364002,2.0691,4500.0,4499.2,0.239]
[1759511364200,2.93857697,4499.3,4499.2,0.00235324]
[1759511364402,2.0691,4499.3,4499.2,0.00235324]
[1759511364806,2.93857697,4499.3,4499.2,2.10085324]
[1759511365203,3.2078,4500.1,4499.3,2.0985]
[1759511365401,3.2078,4500.1,4499.5,3.2078]
[1759511365605,2.93824726,4499.9,4499.6,2.0985]
[1759511365905,2.93824726,4499.9,4499.8,2.0985]
[1759511366299,2.93824726,4499.9,4499.8,2.3365]
[1759511366810,0.00281701,4500.0,4499.9,2.0628]
[1759511367006,0.00281701,4500.0,4499.9,2.3008]
[1759511367206,0.00281701,4500.0,4499.9,2.0628]
[1759511367505,0.00281701,4500.0,4499.9,7.0628]
[1759511367711,0.00281701,4500.0,4499.9,7.70052]
[1759511368110,0.00281701,4500.0,4499.9,7.3008]
[1759511369611,3.60737,4501.6,4500.7,2.0628]
[1759511369908,2.87153542,4501.3,4501.1,2.0628]
[1759511370109,2.87153542,4501.3,4501.2,2.3008]
[1759511370313,3.2078,4502.2,4501.3,2.0628]
[1759511370509,0.00249871,4502.2,4502.1,5.67013]
[1759511370812,0.00249871,4502.2,4502.1,5.5086]
[1759511371702,1.77682817,4506.0,4502.5,2.0628]
[1759511371703,3.2078,4503.8,4502.5,2.0628]
[1759511371901,3.2078,4503.8,4502.8,5.2706]
[1759511372104,0.39935,4504.1,4502.8,5.5086]
[1759511372307,2.189,4504.2,4502.8,5.5086]
[1759511372508,3.2078,4504.3,4503.3,0.39942]
[1759511372707,0.00266915,4504.3,4503.5,2.1712]
[1759511372914,2.84344167,4504.1,4504.0,2.1712]
[1759511373104,0.00266915,4504.3,4504.0,0.238]
[1759511373609,0.00266915,4504.3,4504.2,2.1712]
[1759511373805,0.00266915,4504.3,4503.9,3.2078]
[1759511374003,2.84074249,4504.2,4504.0,0.238]
[1759511374205,2.93491713,4504.3,4504.0,0.238]
[1759511374409,2.93491713,4504.3,4504.2,2.57054]
[1759511374410,0.00266915,4504.3,4504.2,2.57054]
[1759511374611,0.00266915,4504.3,4504.2,2.80854]
[1759511374809,0.00266915,4504.3,4504.2,2.4092]
[1759511375007,0.00266915,4504.3,4504.2,2.1712]
[1759511375211,2.93120664,4504.3,4503.9,3.2078]
[1759511375416,0.00266915,4504.3,4504.2,2.4092]
[1759511375711,0.00266915,4504.3,4504.2,2.80854]
[1759511376112,0.00266915,4504.3,4504.2,7.4092]
[1759511376417,0.00266915,4504.3,4504.2,2.4092]
[1759511376616,0.00266915,4504.3,4504.2,7.80854]
[1759511376817,3.2078,4505.5,4504.2,7.80854]
[1759511376818,3.2078,4506.0,4505.1,2.1712]
[1759511377012,3.2078,4506.0,4505.5,0.39923]
[1759511377317,2.83478169,4505.8,4505.7,2.1712]
[1759511377519,2.189,4505.8,4505.0,3.2078]
[1759511377809,2.83478169,4505.7,4505.1,2.4092]
[1759511378014,2.83478169,4505.7,4505.6,5.77822]
[1759511378212,0.00271212,4505.8,4505.7,2.1712]
[1759511378715,0.00271212,4505.8,4505.7,7.1712]
[1759511378911,3.2078,4507.3,4505.8,2.1712]
[1759511379209,0.812,4509.0,4506.8,3.60691]
[1759511379210,2.83046437,4507.2,4506.8,3.60691]
[1759511379408,2.83046437,4507.2,4506.9,0.238]
[1759511379615,2.83046437,4507.2,4506.0,0.8324]
[1759511379616,0.39909,4507.1,4506.2,3.2078]
[1759511379810,2.19100777,4507.1,4506.3,0.238]
[1759511380011,2.19100777,4507.1,4506.4,2.1712]
[1759511380012,0.00200777,4507.1,4506.4,2.1712]
[1759511380310,2.84015822,4507.0,4506.5,0.238]
[1759511380615,2.84015822,4507.0,4506.9,0.3991]
[1759511380915,0.00200777,4507.1,4507.0,2.1712]
[1759511381308,2.189,4508.6,4507.7,0.39903]
[1759511381514,0.39898,4508.4,4507.7,3.2078]
[1759511381715,0.39901,4507.9,4507.8,0.238]
[1759511382014,2.90437442,4508.3,4507.9,2.1712]